fUST/lending_fUST_20240110
["ID","MTS","AMOUNT","RATE_DAILY","PERIOD"]
[310951733,1704832239910,-726.26,0.00030999,2]
[310951734,1704832239918,-166.78944766,0.00031,4]
[310951735,1704832239927,-103942.59633946,0.00031,4]
[310951736,1704832239936,-155.0,0.00031507,2]
[310951737,1704832239945,-680.81316922,0.000318,3]
[310951738,1704832239954,-75635.22216042,0.00031922,2]
[310951739,1704832239962,-50000.0,0.00031989,2]
[310951740,1704832239971,-194.7524305,0.00032,4]
[310951741,1704832239980,-50000.0,0.00032056,2]
[310951742,1704832239988,-620.00007153,0.00032089,2]
[310951743,1704832239997,-50000.0,0.00032122,2]
[310951744,1704832240005,-50000.0,0.00032189,2]
[310951745,1704832240014,-50000.0,0.00032189,3]
[310951746,1704832240023,-50000.0,0.00032256,2]
[310951747,1704832240133,-50000.0,0.00032323,2]
[310951748,1704832240143,-50000.0,0.00032323,3]
[310951749,1704832240152,-53432.67930984,0.00032323,4]
[310951750,1704832240162,-10539.97906427,0.00032323,3]
[310951751,1704832240171,-1500.0,0.000328,2]
[310951752,1704832240181,-322.82899919,0.00032876,7]
[310951753,1704832240190,-500.0,0.00032876,7]
[310951754,1704832240200,-198.86394338,0.00032876,7]
[310951755,1704832240209,-599.58994423,0.00032876,7]
[310951756,1704832240218,-500.0,0.00032876,7]
[310951757,1704832240228,-346.39902181,0.00032876,7]
[310951758,1704832240237,-214.81889696,0.00032876,7]
[310951759,1704832240246,-500.0,0.00032876,7]
[310951760,1704832240255,-202.83475516,0.00032876,7]
[310951761,1704832240264,-636.85483785,0.00032876,7]
[310951762,1704832240274,-538.04833198,0.00032876,7]
[310951763,1704832240283,-176.43151337,0.00032876,7]
[310951764,1704832240292,-431.81859117,0.00032876,7]
[310951765,1704832240301,-500.0,0.00032876,7]
[310951766,1704832240311,-411.42667331,0.00032876,7]
[310951767,1704832240320,-236.09212716,0.00032876,7]
[310951768,1704832240329,-500.0,0.00032876,7]
[310951769,1704832240338,-500.0,0.00032876,7]
[310951770,1704832240348,-214.99517983,0.00032876,7]
[310951771,1704832240360,-555.41275507,0.00032876,7]
[310951772,1704832240369,-256.19305479,0.00032876,7]
[310951773,1704832240379,-155.0,0.00032877,2]
[310951774,1704832240388,-242.92345092,0.00032894,7]
[310951775,1704832240398,-405.98287871,0.00032974,7]
[310951776,1704832240408,-405.98287871,0.0003298,7]
[310951777,1704832240417,-649.46848965,0.00033,4]
[310951778,1704832240426,-171.0,0.00033,2]
[310951779,1704832240436,-171.0,0.00033,2]
[310951780,1704832240445,-434.0,0.00033,2]
[310951781,1704832240454,-173.001702,0.0003302,2]
[310951782,1704832240464,-156.569027,0.0003302,2]
[310951783,1704832240473,-160.35199371,0.00033023,2]
[310951784,1704832240483,-1981.29901351,0.00033099,2]
[310951785,1704832240492,-154.41457912,0.00033114,7]
[310951786,1704832240501,-152.38900235,0.00033174,7]
[310951787,1704832240510,-431.12624763,0.000332,2]
[310951788,1704832240519,-431.12624763,0.000332,2]
[310951789,1704832240529,-431.12624763,0.000332,2]
[310951790,1704832240538,-431.12624763,0.000332,2]
[310951791,1704832240547,-431.12624763,0.000332,2]
[310951792,1704832240556,-431.12624763,0.000332,2]
[310951793,1704832240565,-431.12624763,0.000332,2]
[310951794,1704832240575,-431.12624763,0.000332,2]
[310951795,1704832240583,-431.12624763,0.000332,2]
[310951796,1704832240592,-431.12624,0.000332,2]
[310951797,1704832240603,-152.38900235,0.0003324,7]
[310951798,1704832240613,-152.38900235,0.00033305,7]
[310951799,1704832240622,-405.98287871,0.00033346,7]
[310951800,1704832240632,-2000.0,0.000334,2]
[310951801,1704832240641,-2000.0,0.0003341,2]
[310951802,1704832240650,-152.38900235,0.00033415,7]
[310951803,1704832240659,-2000.0,0.0003342,2]
[310951804,1704832240669,-2000.0,0.0003343,2]
[310951805,1704832240677,-156.569027,0.00033433,2]
[310951806,1704832240687,-2000.0,0.0003344,2]
[310951807,1704832240696,-2000.0,0.0003345,2]
[310951808,1704832240705,-2000.0,0.0003346,2]
[310951809,1704832240714,-2000.0,0.0003347,2]
[310951811,1704832240723,-2000.0,0.0003348,2]
[310951813,1704832240735,-2000.0,0.0003349,2]
[310951815,1704832240744,-868.9759266,0.0003349,2]
[310951816,1704832240752,-868.9759266,0.0003349,2]
[310951818,1704832240762,-868.9759266,0.0003349,2]
[310951821,1704832240771,-868.9759266,0.0003349,2]
[310951822,1704832240780,-868.9759266,0.0003349,2]
[310951823,1704832240788,-868.9759266,0.0003349,2]
[310951824,1704832240797,-868.9759266,0.0003349,2]
[310951825,1704832240807,-868.9759266,0.0003349,2]
[310951826,1704832240816,-868.9759266,0.0003349,2]
[310951827,1704832240825,-868.9759266,0.0003349,2]
[310951828,1704832240834,-2114.930134,0.000335,2]
[310951829,1704832240843,-150.0,0.0003356,2]
[310951830,1704832240853,-405.98287871,0.00033617,7]
[310951831,1704832240862,-152.38900235,0.00033669,7]
[310951832,1704832240871,-620.00000358,0.00033694,2]
[310951833,1704832240880,-152.38900235,0.00033747,7]
[310951834,1704832240890,-405.98287871,0.00033755,7]
[310951835,1704832240899,-150.92453773,0.00033759,2]
[310951836,1704832240908,-250.36569715,0.00033759,2]
[310951837,1704832240917,-152.38900235,0.0003377,7]
[310951838,1704832240926,-1500.0,0.000338,2]
[310951839,1704832240935,-156.569027,0.00033846,2]
[310951840,1704832240944,-405.98287871,0.00033861,7]
[310951841,1704832240953,-2000.0,0.000339,2]
[310951842,1704832240962,-6831.08729717,0.0003391,7]
[310951843,1704832240971,-2000.0,0.0003391,2]
[310951844,1704832240980,-2000.0,0.0003392,2]
[310951845,1704832240990,-2000.0,0.0003393,2]
[310951846,1704832240999,-405.98287871,0.00033935,7]
[310951847,1704832241008,-2000.0,0.0003394,2]
[310951848,1704832241017,-2000.0,0.0003395,2]
[310951849,1704832241026,-2000.0,0.0003396,2]
[310951850,1704832241036,-405.98287871,0.00033961,7]
[310951851,1704832241044,-2000.0,0.0003397,2]
[310951852,1704832241053,-2000.0,0.0003398,2]
[310951853,1704832241063,-2000.0,0.0003399,2]
[310951855,1704832241072,-152.38900235,0.00033999,7]
[310951856,1704832241082,-1000.0,0.00034,7]
[310951857,1704832241091,-2000.0,0.00034,2]
[310951858,1704832241101,-168.08,0.00034,2]
[310951859,1704832241112,-335.40763856,0.00034,2]
[310951860,1704832241121,-157.01361898,0.00034,2]
[310951861,1704832241130,-157.01361898,0.00034,2]
[310951862,1704832241140,-157.01361898,0.00034,2]
[310951863,1704832241149,-500.0,0.00034,7]
[310951864,1704832241158,-152.38900235,0.00034008,7]
[310951865,1704832241166,-2000.0,0.0003401,2]
[310951866,1704832241176,-405.98287871,0.00034019,7]
[310951867,1704832241185,-2000.0,0.0003402,2]
[310951868,1704832241194,-2000.0,0.0003403,2]
[310951869,1704832241203,-405.98287871,0.00034032,7]
[310951870,1704832241213,-2000.0,0.0003404,2]
[310951871,1704832241222,-2000.0,0.0003405,2]
[310951872,1704832241231,-2000.0,0.0003406,2]
[310951873,1704832241240,-2000.0,0.0003407,2]
[310951874,1704832241249,-2000.0,0.0003408,2]
[310951875,1704832241259,-2066.583364,0.0003409,2]
[310951876,1704832241268,-405.98287871,0.00034145,7]
[310951877,1704832241277,-405.98287871,0.00034184,7]
[310951878,1704832241286,-155.0,0.00034247,2]
[310951879,1704832241295,-156.569027,0.00034258,2]
[310951880,1704832241304,-405.98287871,0.00034312,7]
[310951881,1704832241312,-405.98287871,0.0003432,7]
[310951882,1704832241322,-405.98287871,0.00034324,7]
[310951883,1704832241331,-301.84907546,0.00034327,4]
[310951884,1704832241340,-152.38900235,0.0003433,7]
[310951885,1704832241349,-152.38900235,0.00034352,7]
[310951886,1704832241361,-405.98287871,0.0003436,7]
[310951887,1704832241370,-152.38900235,0.00034367,7]
[310951888,1704832241379,-152.38900235,0.00034385,7]
[310951889,1704832241389,-152.38900235,0.00034388,7]
[310951890,1704832241398,-405.98287871,0.00034496,7]
[310951891,1704832241407,-4000.0,0.00034521,2]
[310951892,1704832241416,-154.41457912,0.00034525,7]
[310951893,1704832241426,-13632.10155416,0.00034529,5]
[310951894,1704832241435,-5000.0,0.00034542,7]
[310951895,1704832241444,-405.98287871,0.00034546,7]
[310951896,1704832241453,-405.98287871,0.00034604,7]
[310951897,1704832241462,-156.569027,0.00034671,2]
[310951898,1704832241472,-173.001702,0.00034671,2]
[310951899,1704832241481,-405.98287871,0.00034724,7]
[310951900,1704832241490,-405.98287871,0.00034729,7]
[310951901,1704832241499,-405.98287871,0.00034787,7]
[310951902,1704832241508,-8000.0,0.000348,14]
[310951903,1704832241518,-1500.0,0.000348,2]
[310951904,1704832241527,-32098.36745887,0.0003488,3]
[310951905,1704832241536,-405.98287871,0.00034894,7]
[310951906,1704832241546,-242.25670695,0.000349,30]
[310951907,1704832241555,-603.69815092,0.00034904,7]
[310951908,1704832241565,-405.98287871,0.00034947,7]
[310951909,1704832241574,-154.41457912,0.00034959,7]
[310951910,1704832241583,-24140.18610249,0.0003498,14]
[310951911,1704832241592,-290.09823479,0.00035,4]
[310951912,1704832241603,-591.11085398,0.00035,2]
[310951913,1704832241611,-3508.87335994,0.00035,2]
[310951914,1704832241620,-283.822248,0.00035,7]
[310951915,1704832241629,-6802.96007234,0.00035,4]
[310951916,1704832241638,-7803.1787706,0.00035,4]
[310951917,1704832241647,-2967.08,0.00035,2]
[310951918,1704832241656,-332.52969855,0.00035,4]
[310951919,1704832241665,-156.08945156,0.00035,6]
[310951920,1704832241674,-7503.56939095,0.00035,45]
[310951921,1704832241682,-813.30493426,0.00035,14]
[310951922,1704832241691,-1596.96171091,0.00035,7]
[310951923,1704832241701,-309.81411154,0.00035,4]
[310951924,1704832241710,-500.0,0.00035,7]
[310951925,1704832241719,-154.41457912,0.00035052,7]
[310951926,1704832241728,-5000.0,0.00035066,7]
[310951927,1704832241738,-5000.0,0.00035066,7]
[310951928,1704832241747,-5000.0,0.00035066,7]
[310951929,1704832241756,-579.24084,0.00035066,2]
[310951930,1704832241765,-579.24084,0.00035066,2]
[310951931,1704832241777,-200.0,0.000351,4]
[310951932,1704832241786,-1000.0,0.00035157,2]
[310951933,1704832241795,-152.38900235,0.00035158,7]
[310951934,1704832241804,-5000.0,0.00035174,7]
[310951935,1704832241813,-8452.02079466,0.00035174,7]
[310951936,1704832241822,-500.0,0.00035188,2]
[310951937,1704832241830,-19999.999999,0.00035199,30]
[310951938,1704832241839,-1000.0,0.00035229,2]
[310951939,1704832241848,-1000.0,0.00035262,2]
[310951940,1704832241859,-1000.0,0.00035284,2]
[310951941,1704832241868,-154.41457915,0.00035284,7]
[310951942,1704832241878,-1000.0,0.000353,2]
[310951943,1704832241887,-1000.0,0.00035305,2]
[310951944,1704832241896,-1000.0,0.0003531,2]
[310951945,1704832241905,-1000.0,0.00035351,2]
[310951946,1704832241915,-1000.0,0.00035365,2]
[310951947,1704832241924,-300.0,0.00035377,2]
[310951948,1704832241933,-620.00000018,0.00035379,2]
[310951949,1704832241942,-1000.0,0.00035387,2]
[310951950,1704832241951,-1000.0,0.00035388,2]
[310951951,1704832241960,-1000.0,0.0003539,2]
[310951952,1704832241968,-1000.0,0.00035397,2]
[310951953,1704832241977,-1000.0,0.00035401,2]
[310951954,1704832241987,-758.13577068,0.00035405,2]
[310951955,1704832241996,-405.98287871,0.00035419,7]
[310951956,1704832242006,-1000.0,0.00035421,2]
[310951957,1704832242014,-1000.0,0.00035436,2]
[310951958,1704832242023,-231.8455,0.00035438,2]
[310951959,1704832242033,-166.91046477,0.0003549,4]
[310951960,1704832242041,-301.0,0.00035497,2]
[310951961,1704832242050,-47058.90272354,0.000355,14]
[310951962,1704832242059,-152.38900235,0.000355,7]
[310951963,1704832242069,-218.43436,0.000355,2]
[310951964,1704832242079,-305.823861,0.000355,4]
[310951965,1704832242088,-1000.0,0.00035502,2]
[310951966,1704832242097,-163.305352,0.000356,2]
[310951967,1704832242108,-16405.38050569,0.00035608,2]
[310951968,1704832242117,-235.76417524,0.00035613,2]
[310951969,1704832242126,-973.98992676,0.00035615,4]
[310951970,1704832242134,-303.97982995,0.00035615,4]
[310951971,1704832242143,-946.23744718,0.00035615,4]
[310951972,1704832242153,-260.62290584,0.00035615,4]
[310951973,1704832242161,-12381.96682699,0.00035615,4]
[310951974,1704832242170,-2183.036159,0.00035616,2]
[310951975,1704832242180,-2183.036159,0.00035616,2]
[310951976,1704832242190,-178.612722,0.00035616,2]
[310951977,1704832242199,-179.0,0.00035616,2]
[310951978,1704832242208,-151.0,0.00035616,2]
[310951979,1704832242217,-430.265149,0.00035616,2]
[310951980,1704832242227,-430.265149,0.00035616,2]
[310951981,1704832242235,-579.24084,0.00035616,2]
[310951982,1704832242244,-579.24084,0.00035616,2]
[310951983,1704832242253,-505.94829747,0.00035616,2]
[310951984,1704832242263,-505.81431976,0.00035616,2]
[310951985,1704832242271,-500.0,0.00035616,2]
[310951986,1704832242371,-500.0,0.00035616,2]
[310951987,1704832242381,-500.0,0.00035616,2]
[310951988,1704832242390,-500.0,0.00035616,2]
[310951989,1704832242399,-500.62596712,0.00035616,2]
[310951990,1704832242409,-500.0,0.00035616,2]
[310951991,1704832242418,-500.0,0.00035616,2]
[310951992,1704832242427,-500.18667866,0.00035616,2]
[310951993,1704832242437,-500.0,0.00035616,2]
[310951994,1704832242446,-500.18326723,0.00035616,2]
[310951995,1704832242455,-532.48570596,0.00035616,2]
[310951996,1704832242464,-634.32681973,0.00035616,2]
[310951997,1704832242474,-355.65774064,0.00035616,2]
[310951998,1704832242484,-500.30671878,0.00035616,2]
[310951999,1704832242494,-500.0,0.00035616,2]
[310952000,1704832242503,-500.0,0.00035616,2]
[310952001,1704832242514,-228.57916484,0.00035616,2]
[310952002,1704832242524,-558.49909865,0.00035616,2]
[310952003,1704832242533,-354.98291733,0.00035616,2]
[310952004,1704832242543,-500.0,0.00035616,2]
[310952005,1704832242552,-516.41,0.00035616,2]
[310952006,1704832242561,-500.0,0.00035616,2]
[310952007,1704832242571,-500.0,0.00035616,2]
[310952008,1704832242581,-500.0,0.00035616,2]
[310952009,1704832242590,-500.0,0.00035616,2]
[310952010,1704832242599,-500.0,0.00035616,2]
[310952011,1704832242610,-500.0,0.00035616,2]
[310952012,1704832242619,-500.0,0.00035616,2]
[310952013,1704832242628,-506.43227445,0.00035616,2]
[310952014,1704832242637,-601.18837547,0.00035616,2]
[310952015,1704832242647,-500.0,0.00035616,2]
[310952016,1704832242656,-450.53978601,0.00035616,2]
[310952017,1704832242665,-232.68741591,0.00035616,2]
[310952018,1704832242674,-501.02318153,0.00035616,2]
[310952019,1704832242683,-500.0,0.00035616,2]
[310952020,1704832242692,-500.0,0.00035616,2]
[310952021,1704832242701,-500.0,0.00035616,2]
[310952022,1704832242710,-500.0,0.00035616,2]
[310952023,1704832242719,-544.57,0.00035616,2]
[310952024,1704832242730,-501.71932076,0.00035616,2]
[310952026,1704832242740,-566.98,0.00035616,2]
[310952028,1704832242749,-506.84954695,0.00035616,2]
[310952029,1704832242759,-500.0,0.00035616,2]
[310952030,1704832242768,-554.90031122,0.00035616,2]
[310952031,1704832242779,-500.34286744,0.00035616,2]
[310952032,1704832242788,-500.0,0.00035616,2]
[310952033,1704832242798,-500.0,0.00035616,2]
[310952035,1704832242808,-500.0,0.00035616,2]
[310952037,1704832242818,-492.92540586,0.00035616,2]
[310952039,1704832242827,-500.0,0.00035616,2]
[310952041,1704832242836,-500.86234254,0.00035616,2]
[310952043,1704832242845,-500.0,0.00035616,2]
[310952045,1704832242855,-500.0,0.00035616,2]
[310952047,1704832242865,-575.62651939,0.00035616,2]
[310952048,1704832242874,-500.0,0.00035616,2]
[310952050,1704832242883,-575.14257119,0.00035616,2]
[310952051,1704832242892,-501.27966863,0.00035616,2]
[310952054,1704832242901,-500.0,0.00035616,2]
[310952057,1704832242911,-500.0,0.00035616,2]
[310952058,1704832242919,-500.36532895,0.00035616,2]
[310952059,1704832242930,-167.69414103,0.00035616,2]
[310952060,1704832242939,-567.1617221,0.00035616,2]
[310952061,1704832242948,-500.0,0.00035616,2]
[310952062,1704832242957,-500.0,0.00035616,2]
[310952063,1704832242967,-414.1979926,0.00035616,2]
[310952064,1704832242976,-500.70656136,0.00035616,2]
[310952065,1704832242985,-505.30607923,0.00035616,2]
[310952066,1704832242994,-500.3727799,0.00035616,2]
[310952067,1704832243003,-500.94586147,0.00035616,2]
[310952068,1704832243013,-500.0,0.00035616,2]
[310952069,1704832243022,-502.23034535,0.00035616,2]
[310952070,1704832243031,-500.76133716,0.00035616,2]
[310952071,1704832243041,-500.0,0.00035616,2]
[310952072,1704832243050,-500.0,0.00035616,2]
[310952073,1704832243059,-381.12834279,0.00035616,2]
[310952074,1704832243070,-539.46030145,0.00035616,2]
[310952075,1704832243079,-500.0,0.00035616,2]
[310952076,1704832243089,-500.21455608,0.00035616,2]
[310952077,1704832243098,-500.0,0.00035616,2]
[310952078,1704832243108,-422.40092155,0.00035616,2]
[310952079,1704832243117,-500.0,0.00035616,2]
[310952081,1704832243127,-517.84558427,0.00035616,2]
[310952083,1704832243136,-500.0,0.00035616,2]
[310952085,1704832243145,-307.51765686,0.00035616,2]
[310952087,1704832243154,-500.0,0.00035616,2]
[310952088,1704832243163,-500.3522875,0.00035616,2]
[310952089,1704832243171,-500.0,0.00035616,2]
[310952090,1704832243181,-500.0,0.00035616,2]
[310952092,1704832243190,-500.0,0.00035616,2]
[310952094,1704832243198,-500.0,0.00035616,2]
[310952096,1704832243208,-602.6218737,0.00035616,2]
[310952097,1704832243217,-535.95716489,0.00035616,2]
[310952098,1704832243225,-500.0,0.00035616,2]
[310952099,1704832243234,-422.84860486,0.00035616,2]
[310952100,1704832243243,-620.0768675,0.00035616,2]
[310952101,1704832243252,-517.52671074,0.00035616,2]
[310952102,1704832243261,-500.0,0.00035616,2]
[310952103,1704832243270,-535.27883269,0.00035616,2]
[310952104,1704832243279,-299.67374614,0.00035616,2]
[310952105,1704832243288,-500.0,0.00035616,2]
[310952106,1704832243297,-500.41361829,0.00035616,2]
[310952107,1704832243307,-500.0,0.00035616,2]
[310952108,1704832243317,-200.0,0.00035616,2]
[310952109,1704832243326,-504.80763993,0.00035616,2]
[310952110,1704832243336,-500.0,0.00035616,2]
[310952111,1704832243345,-500.0,0.00035616,2]
[310952112,1704832243356,-577.71203112,0.00035616,2]
[310952113,1704832243366,-220.0,0.00035616,2]
[310952114,1704832243375,-500.0,0.00035616,2]
[310952115,1704832243385,-500.0,0.00035616,2]
[310952116,1704832243394,-506.80683171,0.00035616,2]
[310952117,1704832243403,-500.0,0.00035616,2]
[310952118,1704832243412,-600.0,0.00035616,2]
[310952120,1704832243421,-605.49,0.00035616,2]
[310952122,1704832243431,-205.3030203,0.00035616,2]
[310952124,1704832243440,-500.0,0.00035616,2]
[310952125,1704832243449,-500.0,0.00035616,2]
[310952127,1704832243458,-500.0,0.00035616,2]
[310952129,1704832243467,-515.07091795,0.00035616,2]
[310952130,1704832243477,-500.0,0.00035616,2]
[310952131,1704832243486,-500.0,0.00035616,2]
[310952132,1704832243496,-647.75,0.00035616,2]
[310952133,1704832243505,-500.0,0.00035616,2]
[310952134,1704832243514,-500.0,0.00035616,2]
[310952135,1704832243523,-500.0,0.00035616,2]
[310952136,1704832243532,-500.0,0.00035616,2]
[310952137,1704832243542,-500.0,0.00035616,2]
[310952138,1704832243551,-608.25509253,0.00035616,2]
[310952139,1704832243560,-500.0,0.00035616,2]
[310952140,1704832243570,-456.63432085,0.00035616,2]
[310952141,1704832243579,-502.57378155,0.00035616,2]
[310952142,1704832243588,-500.0,0.00035616,2]
[310952143,1704832243597,-500.0,0.00035616,2]
[310952144,1704832243607,-500.0,0.00035616,2]
[310952145,1704832243616,-547.39227854,0.00035616,2]
[310952146,1704832243624,-2426.81,0.00035616,2]
[310952147,1704832243633,-500.0,0.00035616,2]
[310952148,1704832243642,-500.0,0.00035616,2]
[310952149,1704832243651,-522.91458442,0.00035616,2]
[310952150,1704832243660,-500.0,0.00035616,2]
[310952151,1704832243669,-523.27587313,0.00035616,2]
[310952152,1704832243679,-500.0,0.00035616,2]
[310952153,1704832243688,-500.0,0.00035616,2]
[310952154,1704832243697,-1583.37,0.00035616,2]
[310952155,1704832243705,-500.0,0.00035616,2]
[310952156,1704832243715,-500.0,0.00035616,2]
[310952157,1704832243724,-500.0,0.00035616,2]
[310952158,1704832243733,-503.17940485,0.00035616,2]
[310952159,1704832243742,-638.75462537,0.00035616,2]
[310952160,1704832243751,-500.0,0.00035616,2]
[310952161,1704832243761,-529.83107318,0.00035616,2]
[310952162,1704832243770,-500.0,0.00035616,2]
[310952163,1704832243779,-500.0,0.00035616,2]
[310952164,1704832243788,-500.0,0.00035616,2]
[310952165,1704832243797,-457.66355864,0.00035616,2]
[310952166,1704832243805,-500.0,0.00035616,2]
[310952167,1704832243815,-500.41320758,0.00035616,2]
[310952168,1704832243823,-500.0,0.00035616,2]
[310952169,1704832243833,-507.81220053,0.00035616,2]
[310952170,1704832243842,-4020.53,0.00035616,2]
[310952171,1704832243851,-503.4854636,0.00035616,2]
[310952172,1704832243862,-500.0,0.00035616,2]
[310952173,1704832243870,-500.0,0.00035616,2]
[310952174,1704832243879,-500.0,0.00035616,2]
[310952175,1704832243888,-500.0,0.00035616,2]
[310952176,1704832243897,-500.0,0.00035616,2]
[310952177,1704832243906,-511.46965573,0.00035616,2]
[310952178,1704832243915,-500.0,0.00035616,2]
[310952179,1704832243924,-501.03286925,0.00035616,2]
[310952180,1704832243933,-500.0,0.00035616,2]
[310952181,1704832243942,-521.76,0.00035616,2]
[310952182,1704832243951,-500.0,0.00035616,2]
[310952183,1704832243960,-500.28637747,0.00035616,2]
[310952184,1704832243969,-1067.83,0.00035616,2]
[310952185,1704832243978,-500.0,0.00035616,2]
[310952186,1704832243987,-500.37362481,0.00035616,2]
[310952187,1704832243996,-500.0,0.00035616,2]
[310952188,1704832244005,-335.92479617,0.00035616,2]
[310952189,1704832244014,-202.38965493,0.00035616,2]
[310952190,1704832244023,-500.72835156,0.00035616,2]
[310952191,1704832244033,-510.69327756,0.00035616,2]
[310952192,1704832244042,-301.78455933,0.00035616,2]
[310952193,1704832244051,-500.0,0.00035616,2]
[310952194,1704832244061,-500.44723208,0.00035616,2]
[310952195,1704832244071,-500.0,0.00035616,2]
[310952196,1704832244081,-500.0,0.00035616,2]
[310952197,1704832244090,-500.0,0.00035616,2]
[310952198,1704832244100,-500.0,0.00035616,2]
[310952199,1704832244111,-500.0,0.00035616,2]
[310952200,1704832244120,-500.0,0.00035616,2]
[310952201,1704832244129,-601.45,0.00035616,2]
[310952202,1704832244140,-500.0,0.00035616,2]
[310952203,1704832244151,-500.0,0.00035616,2]
[310952204,1704832244160,-500.0,0.00035616,2]
[310952205,1704832244169,-1000.0,0.00035616,2]
[310952206,1704832244178,-501.91854851,0.00035616,2]
[310952207,1704832244188,-500.0,0.00035616,2]
[310952208,1704832244197,-500.0,0.00035616,2]
[310952209,1704832244206,-500.0,0.00035616,2]
[310952210,1704832244215,-500.0,0.00035616,2]
[310952211,1704832244224,-500.0,0.00035616,2]
[310952212,1704832244233,-500.0,0.00035616,2]
[310952213,1704832244242,-500.53498006,0.00035616,2]
[310952214,1704832244251,-500.0,0.00035616,2]
[310952215,1704832244260,-500.0,0.00035616,2]
[310952216,1704832244270,-500.0,0.00035616,2]
[310952217,1704832244279,-500.0,0.00035616,2]
[310952218,1704832244288,-500.0,0.00035616,2]
[310952219,1704832244297,-956.45,0.00035616,2]
[310952220,1704832244306,-500.0,0.00035616,2]
[310952221,1704832244316,-500.0,0.00035616,2]
[310952222,1704832244326,-520.06525507,0.00035616,2]
[310952223,1704832244335,-500.0,0.00035616,2]
[310952224,1704832244344,-500.0,0.00035616,2]
[310952225,1704832244431,-502.36846477,0.00035616,2]
[310952226,1704832244450,-501.41201149,0.00035616,2]
[310952227,1704832244460,-500.0,0.00035616,2]
[310952228,1704832244469,-292.46488415,0.00035616,2]
[310952229,1704832244479,-500.0,0.00035616,2]
[310952230,1704832244488,-503.65,0.00035616,2]
[310952231,1704832244497,-500.0,0.00035616,2]
[310952232,1704832244507,-500.0,0.00035616,2]
[310952233,1704832244516,-500.0,0.00035616,2]
[310952234,1704832244525,-517.92350944,0.00035616,2]
[310952235,1704832244534,-500.0,0.00035616,2]
[310952236,1704832244544,-500.0,0.00035616,2]
[310952237,1704832244554,-500.0,0.00035616,2]
[310952238,1704832244563,-500.0,0.00035616,2]
[310952239,1704832244573,-500.0,0.00035616,2]
[310952240,1704832244582,-500.0,0.00035616,2]
[310952241,1704832244591,-500.0,0.00035616,2]
[310952242,1704832244600,-500.0,0.00035616,2]
[310952243,1704832244610,-506.83720369,0.00035616,2]
[310952244,1704832244619,-500.0,0.00035616,2]
[310952245,1704832244629,-500.0,0.00035616,2]
[310952246,1704832244638,-501.19931651,0.00035616,2]
[310952247,1704832244647,-500.0,0.00035616,2]
[310952248,1704832244656,-541.66,0.00035616,2]
[310952249,1704832244666,-500.0,0.00035616,2]
[310952250,1704832244674,-500.0,0.00035616,2]
[310952251,1704832244684,-194.82128027,0.00035616,5]
[310952252,1704832244693,-500.0,0.00035616,2]
[310952253,1704832244702,-1437.15,0.00035616,2]
[310952254,1704832244711,-1437.15,0.00035616,2]
[310952255,1704832244720,-502.68075034,0.00035616,2]
[310952256,1704832244730,-2772.66,0.00035616,2]
[310952257,1704832244742,-1437.15,0.00035616,2]
[310952258,1704832244751,-1437.15,0.00035616,2]
[310952259,1704832244760,-1437.15,0.00035616,2]
[310952260,1704832244769,-1437.15,0.00035616,2]
[310952261,1704832244779,-1437.15,0.00035616,2]
[310952262,1704832244788,-1437.15,0.00035616,2]
[310952263,1704832244797,-1437.15,0.00035616,2]
[310952264,1704832244806,-500.0,0.00035616,2]
[310952265,1704832244816,-1437.15,0.00035616,2]